fUSD/lending_fUSD_20250423
["ID","MTS","AMOUNT","RATE_DAILY","PERIOD"]
[358744149,1745409046763,-1490.95,0.00046267,2]
[358744151,1745409046773,-4814.87180827,0.00046274,2]
[358744153,1745409046784,-4676.30640074,0.00046282,2]
[358744155,1745409046794,-150.0,0.00046287,2]
[358744157,1745409046805,-150.0,0.00046298,2]
[358744159,1745409046815,-1727.98363455,0.00046298,2]
[358744161,1745409046826,-1500.0,0.00046298,10]
[358744164,1745409046836,-1500.0,0.00046298,10]
[358744166,1745409046850,-311946.43822077,0.000463,2]
[358744168,1745409046861,-707.54,0.00046301,2]
[358744170,1745409046872,-4676.30640074,0.00046306,2]
[358744172,1745409046883,-4676.30640074,0.00046307,2]
[358744174,1745409046896,-2871.62881871,0.00046313,2]
[358744176,1745409046907,-4676.30640074,0.00046318,2]
[358744178,1745409046920,-2871.62881871,0.00046326,2]
[358744180,1745409046931,-150.0,0.00046328,2]
[358744183,1745409046942,-1727.98363455,0.0004633,2]
[358744185,1745409046952,-22347.75416367,0.00046338,2]
[358744187,1745409046963,-150.0,0.0004634,2]
[358744189,1745409046974,-311946.43822077,0.0004634,2]
[358744191,1745409046985,-5379.64052175,0.00046343,2]
[358744193,1745409046996,-765.19629513,0.00046343,2]
[358744195,1745409047006,-5379.64052175,0.00046343,2]
[358744197,1745409047016,-2871.62881871,0.00046352,2]
[358744199,1745409047027,-4676.30640074,0.00046352,2]
[358744202,1745409047038,-524.87202455,0.00046356,30]
[358744203,1745409047048,-765.19629513,0.0004636,2]
[358744204,1745409047059,-2871.62881871,0.00046361,2]
[358744205,1745409047069,-150.0,0.00046366,2]
[358744206,1745409047080,-765.19629513,0.00046369,2]
[358744207,1745409047092,-311946.43822077,0.00046378,2]
[358744208,1745409047103,-765.19629513,0.00046378,2]
[358744209,1745409047115,-1727.98363455,0.00046379,2]
[358744210,1745409047126,-22347.75416367,0.0004638,2]
[358744211,1745409047137,-150.0,0.00046382,2]
[358744212,1745409047147,-1727.98363455,0.00046387,2]
[358744213,1745409047158,-150.0,0.00046391,2]
[358744214,1745409047169,-22347.75416367,0.00046396,2]
[358744215,1745409047180,-5379.64052175,0.00046398,2]
[358744216,1745409047191,-765.19629513,0.00046398,2]
[358744217,1745409047201,-151.0,0.00046398,14]
[358744218,1745409047211,-126136.43748621,0.00046398,10]
[358744219,1745409047222,-1727.98363455,0.00046401,2]
[358744220,1745409047233,-150.0,0.00046405,2]
[358744221,1745409047244,-4676.30640074,0.00046413,2]
[358744222,1745409047254,-311946.43822077,0.00046416,2]
[358744223,1745409047265,-5379.64052175,0.00046416,2]
[358744224,1745409047276,-22347.75416367,0.00046417,2]
[358744225,1745409047287,-311946.43822077,0.00046421,2]
[358744226,1745409047299,-2871.62881871,0.00046422,2]
[358744227,1745409047310,-150.0,0.00046425,2]
[358744229,1745409047321,-311946.43822077,0.00046427,2]
[358744231,1745409047331,-2871.62881871,0.00046431,2]
[358744233,1745409047343,-22347.75416367,0.00046432,2]
[358744235,1745409047353,-200.0,0.00046443,2]
[358744236,1745409047364,-1727.98363455,0.00046448,2]
[358744237,1745409047374,-248.34498724,0.0004645,2]
[358744238,1745409047385,-4676.30640074,0.0004645,2]
[358744239,1745409047396,-200.0,0.00046451,2]
[358744240,1745409047406,-765.19629513,0.00046454,2]
[358744241,1745409047417,-150.0,0.00046463,2]
[358744242,1745409047428,-5379.64052175,0.00046465,2]
[358744243,1745409047438,-311946.43822077,0.00046465,2]
[358744244,1745409047449,-600.0,0.00046475,120]
[358744245,1745409047459,-4676.30640074,0.00046482,2]
[358744246,1745409047469,-765.19629513,0.00046484,2]
[358744247,1745409047480,-22347.75416367,0.0004649,2]
[358744248,1745409047491,-311946.43822077,0.00046492,2]
[358744249,1745409047501,-151.0,0.000465,14]
[358744250,1745409047512,-4785.95641424,0.000465,120]
[358744251,1745409047522,-33164.77258111,0.000465,120]
[358744252,1745409047532,-4500.0,0.000465,2]
[358744253,1745409047543,-150.0,0.00046507,2]
[358744254,1745409047553,-971.8327,0.00046515,3]
[358744255,1745409047563,-2000.0,0.00046515,3]
[358744256,1745409047573,-150.0,0.00046532,2]
[358744257,1745409047583,-878.5,0.00046539,60]
[358744258,1745409047594,-150.0,0.00046548,2]
[358744259,1745409047604,-150.0,0.00046559,2]
[358744260,1745409047615,-150.0,0.0004657,2]
[358744261,1745409047626,-528.91572006,0.00046575,120]
[358744262,1745409047636,-528.91572006,0.00046575,120]
[358744263,1745409047646,-528.91572006,0.00046575,120]
[358744265,1745409047656,-528.91572006,0.00046575,120]
[358744267,1745409047666,-528.91572006,0.00046575,120]
[358744269,1745409047678,-528.91572006,0.00046575,120]
[358744271,1745409047688,-528.91572006,0.00046575,120]
[358744273,1745409047699,-528.91572006,0.00046575,120]
[358744275,1745409047709,-528.91572006,0.00046575,120]
[358744276,1745409047719,-528.91572006,0.00046575,120]
[358744277,1745409047729,-528.91572006,0.00046575,120]
[358744278,1745409047740,-528.91572006,0.00046575,120]
[358744279,1745409047750,-528.91572006,0.00046575,120]
[358744280,1745409047760,-528.91572006,0.00046575,120]
[358744281,1745409047771,-528.91572006,0.00046575,120]
[358744282,1745409047781,-528.91572006,0.00046575,120]
[358744283,1745409047791,-528.91572006,0.00046575,120]
[358744284,1745409047802,-528.91572006,0.00046575,120]
[358744285,1745409047812,-564.17676805,0.00046575,120]
[358744286,1745409047822,-564.17676805,0.00046575,120]
[358744287,1745409047833,-564.17676805,0.00046575,120]
[358744288,1745409047844,-564.17676805,0.00046575,120]
[358744289,1745409047858,-564.17676805,0.00046575,120]
[358744290,1745409047868,-564.17676805,0.00046575,120]
[358744291,1745409047878,-564.17676805,0.00046575,120]
[358744292,1745409047889,-564.17676805,0.00046575,120]
[358744293,1745409047899,-564.17676805,0.00046575,120]
[358744294,1745409047910,-329.82669787,0.00046575,120]
[358744295,1745409047921,-150.0,0.00046575,120]
[358744296,1745409047935,-150.0,0.00046575,120]
[358744297,1745409047946,-150.0,0.00046575,120]
[358744298,1745409047957,-150.0,0.00046575,120]
[358744299,1745409047967,-150.0,0.00046575,120]
[358744300,1745409047978,-247.06943474,0.00046575,120]
[358744301,1745409047988,-193.77719744,0.00046575,120]
[358744302,1745409047998,-500.0,0.00046575,120]
[358744303,1745409048009,-500.0,0.00046575,120]
[358744304,1745409048020,-499.22846638,0.00046575,120]
[358744305,1745409048031,-444.0,0.00046575,120]
[358744306,1745409048042,-444.0,0.00046575,120]
[358744307,1745409048053,-444.0,0.00046575,120]
[358744308,1745409048065,-444.0,0.00046575,120]
[358744309,1745409048075,-444.0,0.00046575,120]
[358744310,1745409048087,-444.0,0.00046575,120]
[358744311,1745409048097,-444.0,0.00046575,120]
[358744312,1745409048107,-444.0,0.00046575,120]
[358744313,1745409048117,-444.0,0.00046575,120]
[358744314,1745409048128,-444.0,0.00046575,120]
[358744315,1745409048138,-444.0,0.00046575,120]
[358744316,1745409048149,-444.0,0.00046575,120]
[358744317,1745409048160,-444.0,0.00046575,120]
[358744318,1745409048171,-444.0,0.00046575,120]
[358744319,1745409048182,-444.0,0.00046575,120]
[358744320,1745409048193,-444.0,0.00046575,120]
[358744321,1745409048204,-444.0,0.00046575,120]
[358744322,1745409048214,-444.0,0.00046575,120]
[358744323,1745409048226,-444.0,0.00046575,120]
[358744324,1745409048237,-444.0,0.00046575,120]
[358744325,1745409048247,-444.0,0.00046575,120]
[358744326,1745409048258,-444.0,0.00046575,120]
[358744327,1745409048269,-444.0,0.00046575,120]
[358744328,1745409048279,-460.78746533,0.00046575,120]
[358744329,1745409048289,-500.0,0.00046575,120]
[358744330,1745409048299,-500.0,0.00046575,120]
[358744331,1745409048310,-500.0,0.00046575,120]
[358744332,1745409048321,-500.0,0.00046575,120]
[358744333,1745409048332,-500.0,0.00046575,120]
[358744334,1745409048343,-500.0,0.00046575,120]
[358744335,1745409048355,-500.0,0.00046575,120]
[358744336,1745409048367,-157.413044,0.00046575,120]
[358744337,1745409048378,-150.0,0.00046575,120]
[358744338,1745409048389,-3567.2,0.00046575,120]
[358744339,1745409048400,-500.0,0.00046575,120]
[358744341,1745409048412,-500.0,0.00046575,120]
[358744343,1745409048423,-500.0,0.00046575,120]
[358744345,1745409048434,-500.0,0.00046575,120]
[358744348,1745409048445,-500.0,0.00046575,120]
[358744350,1745409048456,-500.0,0.00046575,120]
[358744352,1745409048466,-500.0,0.00046575,120]
[358744354,1745409048477,-216.16724237,0.00046575,120]
[358744379,1745409048722,-150.0,0.00046575,120]
[358744381,1745409048732,-150.0,0.00046575,120]
[358744383,1745409048743,-158.85871913,0.00046575,120]
[358744385,1745409048754,-150.0,0.00046575,120]
[358744388,1745409048764,-159.92307079,0.00046575,120]
[358744389,1745409048774,-500.0,0.00046575,120]
[358744391,1745409048785,-500.0,0.00046575,120]
[358744394,1745409048795,-500.0,0.00046575,120]
[358744395,1745409048805,-500.0,0.00046575,120]
[358744397,1745409048815,-555.85374743,0.00046575,120]
[358744399,1745409048826,-500.0,0.00046575,120]
[358744402,1745409048836,-500.0,0.00046575,120]
[358744403,1745409048850,-500.0,0.00046575,120]
[358744405,1745409048862,-201.66130777,0.00046575,120]
[358744408,1745409048874,-150.0,0.00046575,60]
[358744410,1745409048886,-150.0,0.00046575,60]
[358744412,1745409048897,-151.55449105,0.00046575,60]
[358744414,1745409048907,-150.0,0.00046575,120]
[358744416,1745409048918,-150.81689232,0.00046575,120]
[358744418,1745409048930,-500.0,0.00046575,120]
[358744420,1745409048940,-500.0,0.00046575,120]
[358744422,1745409048950,-500.0,0.00046575,120]
[358744424,1745409048961,-312.09219957,0.00046575,120]
[358744425,1745409048971,-150.0,0.00046575,120]
[358744426,1745409048982,-150.83845149,0.00046575,120]
[358744427,1745409048992,-329.01971724,0.00046575,2]
[358744428,1745409049002,-150.0,0.00046575,120]
[358744429,1745409049012,-150.0,0.00046575,120]
[358744430,1745409049023,-207.02020461,0.00046575,120]
[358744431,1745409049032,-150.0,0.00046575,120]
[358744432,1745409049042,-150.0,0.00046575,120]
[358744433,1745409049052,-200.0,0.00046575,120]
[358744434,1745409049063,-150.0,0.00046575,120]
[358744435,1745409049074,-150.0,0.00046575,120]
[358744436,1745409049084,-200.0,0.00046575,120]
[358744437,1745409049095,-150.0,0.00046575,120]
[358744438,1745409049106,-200.0,0.00046575,120]
[358744439,1745409049116,-150.0,0.00046575,2]
[358744440,1745409049126,-1550.0,0.00046575,120]
[358744441,1745409049136,-1550.0,0.00046575,120]
[358744442,1745409049148,-1550.0,0.00046575,120]
[358744443,1745409049158,-1550.0,0.00046575,120]
[358744444,1745409049168,-1550.0,0.00046575,120]
[358744445,1745409049178,-1550.0,0.00046575,120]
[358744446,1745409049188,-1550.0,0.00046575,120]
[358744447,1745409049198,-1550.0,0.00046575,120]
[358744448,1745409049208,-1550.0,0.00046575,120]
[358744449,1745409049218,-1550.0,0.00046575,120]
[358744450,1745409049227,-1550.0,0.00046575,120]
[358744451,1745409049237,-1550.0,0.00046575,120]
[358744452,1745409049247,-1550.0,0.00046575,120]
[358744453,1745409049257,-1550.0,0.00046575,120]
[358744455,1745409049267,-1550.0,0.00046575,120]
[358744457,1745409049277,-1550.0,0.00046575,120]
[358744459,1745409049288,-1550.0,0.00046575,120]
[358744460,1745409049298,-1550.0,0.00046575,120]
[358744461,1745409049310,-1550.0,0.00046575,120]
[358744462,1745409049320,-1550.0,0.00046575,120]
[358744463,1745409049331,-1550.0,0.00046575,120]
[358744464,1745409049342,-1550.0,0.00046575,120]
[358744465,1745409049352,-1550.0,0.00046575,120]
[358744466,1745409049362,-1552.32999651,0.00046575,120]
[358744467,1745409049373,-196.78438221,0.00046575,2]
[358744468,1745409049383,-3301.23516088,0.00046575,2]
[358744469,1745409049393,-150.0,0.00046575,10]
[358744470,1745409049403,-514.9645842,0.00046575,5]
[358744471,1745409049413,-573.88,0.00046579,30]
[358744472,1745409049423,-26974.1565652,0.0004658,7]
[358744473,1745409049433,-5648.10729935,0.0004658,7]
[358744474,1745409049443,-500.0,0.00046582,30]
[358744475,1745409049453,-162.96210182,0.00046589,7]
[358744476,1745409049463,-150.0,0.00046596,7]
[358744477,1745409049475,-1341.46,0.000466,2]
[358744478,1745409049485,-2514.16295105,0.000466,10]
[358744479,1745409049495,-160.0,0.00046612,10]
[358744480,1745409049505,-294.404393,0.00046613,14]
[358744481,1745409049515,-500.0,0.00046614,30]
[358744482,1745409049531,-42581.78901203,0.00046624,7]
[358744483,1745409049540,-504.96,0.00046624,30]
[358744484,1745409049551,-151.0,0.00046625,14]
[358744485,1745409049561,-151.0,0.00046625,14]
[358744486,1745409049571,-151.0,0.00046625,14]
[358744487,1745409049582,-151.0,0.00046625,14]
[358744488,1745409049593,-151.0,0.00046625,14]
[358744489,1745409049604,-151.0,0.00046625,14]
[358744490,1745409049615,-151.0,0.00046625,14]
[358744491,1745409049625,-151.0,0.00046625,14]
[358744492,1745409049635,-151.0,0.00046625,14]
[358744493,1745409049645,-151.0,0.00046625,14]
[358744494,1745409049656,-151.0,0.00046625,14]
[358744495,1745409049666,-151.0,0.00046625,14]
[358744496,1745409049677,-151.0,0.00046625,14]
[358744497,1745409049687,-151.0,0.00046625,14]
[358744498,1745409049697,-151.0,0.00046625,14]
[358744499,1745409049707,-171.382728,0.00046625,14]
[358744500,1745409049717,-151.0,0.00046625,14]
[358744501,1745409049727,-151.0,0.00046625,14]
[358744502,1745409049737,-151.0,0.00046625,14]
[358744503,1745409049747,-176.821128,0.00046625,14]
[358744504,1745409049757,-151.0,0.00046625,14]
[358744505,1745409049767,-151.0,0.00046625,14]
[358744506,1745409049777,-255.324934,0.00046625,14]
[358744507,1745409049787,-151.0,0.00046625,14]
[358744508,1745409049798,-151.0,0.00046625,14]
[358744509,1745409049808,-151.0,0.00046625,14]
[358744510,1745409049818,-151.0,0.00046625,14]
[358744511,1745409049829,-151.0,0.00046625,14]
[358744512,1745409049841,-151.0,0.00046625,14]
[358744513,1745409049855,-151.0,0.00046625,14]
[358744514,1745409049865,-225.032441,0.00046625,14]
[358744515,1745409049875,-223.894778,0.00046625,14]
[358744516,1745409049886,-223.894778,0.00046625,14]
[358744517,1745409049896,-223.894778,0.00046625,14]
[358744518,1745409049906,-223.894778,0.00046625,14]
[358744519,1745409049916,-223.894778,0.00046625,14]
[358744520,1745409049929,-223.894778,0.00046625,14]
[358744521,1745409049940,-223.894778,0.00046625,14]
[358744522,1745409049951,-223.894778,0.00046625,14]
[358744523,1745409049961,-223.894778,0.00046625,14]
[358744524,1745409049971,-223.894778,0.00046625,14]
[358744525,1745409049981,-223.894778,0.00046625,14]
[358744526,1745409049991,-223.894778,0.00046625,14]
[358744527,1745409050001,-223.894778,0.00046625,14]
[358744528,1745409050012,-223.894778,0.00046625,14]
[358744529,1745409050022,-223.894778,0.00046625,14]
[358744530,1745409050032,-223.894778,0.00046625,14]
[358744531,1745409050042,-223.894778,0.00046625,14]
[358744532,1745409050051,-223.894778,0.00046625,14]
[358744533,1745409050061,-223.894778,0.00046625,14]
[358744534,1745409050071,-223.894779,0.00046625,14]
[358744535,1745409050081,-151.0,0.00046625,14]
[358744536,1745409050093,-151.0,0.00046625,14]
[358744537,1745409050103,-151.0,0.00046625,14]
[358744538,1745409050113,-151.0,0.00046625,14]
[358744539,1745409050122,-151.0,0.00046625,14]
[358744540,1745409050132,-151.0,0.00046625,14]
[358744541,1745409050142,-151.0,0.00046625,14]
[358744542,1745409050151,-151.0,0.00046625,14]
[358744543,1745409050162,-151.0,0.00046625,14]
[358744544,1745409050171,-151.0,0.00046625,14]
[358744545,1745409050182,-151.0,0.00046625,14]
[358744546,1745409050191,-151.0,0.00046625,14]
[358744547,1745409050201,-151.0,0.00046625,14]
[358744548,1745409050211,-151.0,0.00046625,14]
[358744549,1745409050220,-151.0,0.00046625,14]
[358744550,1745409050230,-151.0,0.00046625,14]
[358744551,1745409050240,-291.850121,0.00046625,14]
[358744552,1745409050249,-151.0,0.00046625,14]
[358744553,1745409050259,-151.0,0.00046625,14]
[358744554,1745409050270,-151.0,0.00046625,14]
[358744555,1745409050280,-154.910191,0.00046625,14]
[358744556,1745409050290,-151.0,0.00046625,14]
[358744557,1745409050300,-151.0,0.00046625,14]
[358744558,1745409050310,-151.0,0.00046625,14]
[358744559,1745409050320,-152.219188,0.00046625,14]
[358744560,1745409050330,-151.0,0.00046625,14]
[358744561,1745409050341,-151.0,0.00046625,14]
[358744562,1745409050352,-151.0,0.00046625,14]
[358744563,1745409050362,-151.0,0.00046625,14]
[358744564,1745409050371,-151.0,0.00046625,14]
[358744565,1745409050381,-151.0,0.00046625,14]
[358744566,1745409050390,-161.625436,0.00046625,14]
[358744567,1745409050400,-158.621067,0.00046625,14]
[358744568,1745409050409,-158.621067,0.00046625,14]
[358744569,1745409050418,-158.621067,0.00046625,14]
[358744570,1745409050428,-151.0,0.00046625,14]
[358744571,1745409050437,-158.621067,0.00046625,14]
[358744572,1745409050449,-151.0,0.00046625,14]
[358744573,1745409050459,-158.621067,0.00046625,14]
[358744574,1745409050469,-151.0,0.00046625,14]
[358744575,1745409050478,-158.621067,0.00046625,14]
[358744576,1745409050487,-151.0,0.00046625,14]
[358744577,1745409050497,-158.621067,0.00046625,14]
[358744578,1745409050506,-151.0,0.00046625,14]
[358744579,1745409050515,-158.621067,0.00046625,14]
[358744580,1745409050525,-158.621067,0.00046625,14]
[358744581,1745409050534,-151.0,0.00046625,14]
[358744582,1745409050544,-158.621067,0.00046625,14]
[358744583,1745409050553,-151.0,0.00046625,14]
[358744584,1745409050562,-158.621067,0.00046625,14]
[358744585,1745409050571,-151.0,0.00046625,14]
[358744586,1745409050581,-158.621067,0.00046625,14]
[358744587,1745409050591,-151.0,0.00046625,14]
[358744588,1745409050601,-158.621067,0.00046625,14]
[358744589,1745409050611,-151.0,0.00046625,14]
[358744590,1745409050621,-158.621067,0.00046625,14]
[358744591,1745409050630,-151.0,0.00046625,14]
[358744592,1745409050640,-158.621067,0.00046625,14]
[358744593,1745409050651,-158.621067,0.00046625,14]
[358744594,1745409050661,-234.635907,0.00046625,14]
[358744595,1745409050671,-158.621067,0.00046625,14]
[358744596,1745409050681,-158.621067,0.00046625,14]
[358744597,1745409050692,-158.621067,0.00046625,14]
[358744598,1745409050704,-158.621063,0.00046625,14]
[358744599,1745409050715,-151.911062,0.00046625,14]
[358744600,1745409050725,-151.0,0.00046625,14]
[358744601,1745409050735,-151.0,0.00046625,14]
[358744602,1745409050748,-197.619778,0.00046625,14]
[358744603,1745409050760,-155.060244,0.00046625,14]
[358744604,1745409050769,-151.0,0.00046625,14]
[358744605,1745409050781,-151.0,0.00046625,14]
[358744606,1745409050791,-151.0,0.00046625,14]
[358744607,1745409050800,-151.0,0.00046625,14]
[358744608,1745409050810,-151.0,0.00046625,14]
[358744609,1745409050820,-151.0,0.00046625,14]
[358744610,1745409050829,-151.0,0.00046625,14]
[358744611,1745409050839,-151.0,0.00046625,14]
[358744612,1745409050850,-151.0,0.00046625,14]
[358744613,1745409050860,-151.0,0.00046625,14]
[358744614,1745409050870,-151.0,0.00046625,14]
[358744615,1745409050880,-169.0,0.00046625,14]
[358744616,1745409050892,-594.796423,0.00046625,14]
[358744617,1745409050902,-594.796423,0.00046625,14]
[358744618,1745409050912,-594.796423,0.00046625,14]
[358744619,1745409050924,-594.796423,0.00046625,14]
[358744620,1745409050935,-594.796423,0.00046625,14]
[358744621,1745409050945,-594.796423,0.00046625,14]
[358744622,1745409050955,-594.796423,0.00046625,14]
[358744623,1745409050965,-594.796423,0.00046625,14]
[358744624,1745409050975,-594.796423,0.00046625,14]
[358744625,1745409050985,-151.0,0.00046625,14]
[358744626,1745409050995,-594.796423,0.00046625,14]
[358744627,1745409051005,-151.0,0.00046625,14]
[358744628,1745409051015,-594.796423,0.00046625,14]
[358744629,1745409051025,-151.0,0.00046625,14]
[358744630,1745409051036,-594.796423,0.00046625,14]
[358744631,1745409051046,-151.0,0.00046625,14]
[358744632,1745409051057,-151.0,0.00046625,14]
[358744633,1745409051067,-594.796423,0.00046625,14]
[358744634,1745409051076,-594.796423,0.00046625,14]
[358744635,1745409051086,-151.0,0.00046625,14]
[358744636,1745409051097,-594.796423,0.00046625,14]
[358744637,1745409051106,-151.0,0.00046625,14]
[358744638,1745409051115,-594.796423,0.00046625,14]
[358744639,1745409051125,-212.886304,0.00046625,14]
[358744640,1745409051134,-594.796423,0.00046625,14]
[358744641,1745409051144,-594.796423,0.00046625,14]
[358744642,1745409051256,-594.796423,0.00046625,14]
[358744643,1745409051267,-594.796427,0.00046625,14]
[358744644,1745409051278,-640.354985,0.00046625,14]
[358744645,1745409051288,-640.354985,0.00046625,14]
[358744646,1745409051297,-640.354985,0.00046625,14]
[358744647,1745409051308,-640.354985,0.00046625,14]
[358744648,1745409051317,-640.354985,0.00046625,14]
[358744649,1745409051327,-151.0,0.00046625,14]
[358744650,1745409051336,-640.354985,0.00046625,14]
[358744651,1745409051347,-640.354985,0.00046625,14]
[358744652,1745409051356,-640.354985,0.00046625,14]
[358744653,1745409051366,-640.354985,0.00046625,14]
[358744654,1745409051375,-640.354985,0.00046625,14]
[358744655,1745409051385,-640.354985,0.00046625,14]
[358744656,1745409051394,-640.354985,0.00046625,14]
[358744657,1745409051404,-640.354985,0.00046625,14]
[358744658,1745409051413,-640.354985,0.00046625,14]
[358744659,1745409051423,-640.354985,0.00046625,14]
[358744660,1745409051432,-640.354985,0.00046625,14]
[358744661,1745409051442,-640.354985,0.00046625,14]
[358744662,1745409051451,-640.354985,0.00046625,14]
[358744663,1745409051460,-640.354985,0.00046625,14]
[358744664,1745409051470,-640.354993,0.00046625,14]
[358744665,1745409051479,-151.0,0.00046625,14]
[358744666,1745409051489,-151.0,0.00046625,14]
[358744667,1745409051499,-151.0,0.00046625,14]
[358744668,1745409051508,-151.0,0.00046625,14]
[358744669,1745409051519,-151.0,0.00046625,14]
[358744670,1745409051528,-151.0,0.00046625,14]
[358744671,1745409051538,-151.0,0.00046625,14]
[358744672,1745409051548,-151.0,0.00046625,14]
[358744673,1745409051559,-244.12793952,0.00046625,14]
[358744674,1745409051569,-193.515066,0.00046625,14]
[358744675,1745409051579,-193.515066,0.00046625,14]
[358744676,1745409051588,-193.515066,0.00046625,14]
[358744677,1745409051598,-193.515066,0.00046625,14]
[358744678,1745409051607,-193.515066,0.00046625,14]
[358744679,1745409051617,-193.515066,0.00046625,14]
[358744680,1745409051628,-193.515066,0.00046625,14]
[358744681,1745409051638,-193.515066,0.00046625,14]
[358744682,1745409051647,-193.515066,0.00046625,14]
[358744683,1745409051657,-193.515066,0.00046625,14]
[358744684,1745409051667,-193.515066,0.00046625,14]
[358744685,1745409051676,-193.515066,0.00046625,14]
[358744686,1745409051685,-193.515066,0.00046625,14]
[358744687,1745409051694,-193.515066,0.00046625,14]
[358744688,1745409051704,-193.515066,0.00046625,14]
[358744689,1745409051714,-193.515066,0.00046625,14]
[358744690,1745409051723,-151.0,0.00046625,14]
[358744691,1745409051733,-151.0,0.00046625,14]
[358744692,1745409051746,-193.515066,0.00046625,14]
[358744693,1745409051755,-151.0,0.00046625,14]
[358744694,1745409051763,-193.515066,0.00046625,14]
[358744695,1745409051773,-151.0,0.00046625,14]
[358744696,1745409051783,-193.515066,0.00046625,14]
[358744697,1745409051793,-151.0,0.00046625,14]
[358744698,1745409051802,-193.515068,0.00046625,14]
[358744699,1745409051812,-151.0,0.00046625,14]
[358744700,1745409051821,-151.0,0.00046625,14]
[358744701,1745409051831,-151.0,0.00046625,14]
[358744702,1745409051841,-151.0,0.00046625,14]
[358744703,1745409051854,-151.0,0.00046625,14]
[358744704,1745409051863,-151.0,0.00046625,14]
[358744705,1745409051873,-151.0,0.00046625,14]
[358744706,1745409051883,-151.0,0.00046625,14]
[358744707,1745409051892,-151.0,0.00046625,14]
[358744708,1745409051902,-151.0,0.00046625,14]
[358744709,1745409051911,-161.847082,0.00046625,14]
[358744710,1745409051922,-151.0,0.00046625,14]
[358744711,1745409051933,-151.0,0.00046625,14]
[358744712,1745409051943,-151.0,0.00046625,14]
[358744713,1745409051953,-151.0,0.00046625,14]
[358744714,1745409051963,-151.0,0.00046625,14]
[358744715,1745409051973,-151.0,0.00046625,14]
[358744716,1745409051982,-151.0,0.00046625,14]
[358744717,1745409051992,-234.114269,0.00046625,14]
[358744718,1745409052001,-225.746988,0.00046625,14]
[358744719,1745409052011,-225.746988,0.00046625,14]
[358744720,1745409052021,-225.746988,0.00046625,14]
[358744721,1745409052032,-225.746988,0.00046625,14]
[358744722,1745409052043,-225.746988,0.00046625,14]
[358744723,1745409052054,-225.746988,0.00046625,14]
[358744724,1745409052064,-225.746988,0.00046625,14]
[358744725,1745409052074,-225.746988,0.00046625,14]
[358744726,1745409052085,-225.746988,0.00046625,14]
[358744727,1745409052095,-209.953623,0.00046625,14]
[358744728,1745409052106,-225.746988,0.00046625,14]
[358744729,1745409052115,-209.953623,0.00046625,14]
[358744730,1745409052125,-225.746988,0.00046625,14]
[358744731,1745409052135,-209.953623,0.00046625,14]
[358744732,1745409052145,-225.746988,0.00046625,14]
[358744733,1745409052156,-209.953623,0.00046625,14]
[358744734,1745409052166,-225.746988,0.00046625,14]
[358744735,1745409052175,-209.953623,0.00046625,14]
[358744736,1745409052185,-225.746988,0.00046625,14]
[358744737,1745409052194,-209.953623,0.00046625,14]
[358744738,1745409052204,-225.746988,0.00046625,14]
[358744739,1745409052213,-209.953623,0.00046625,14]
[358744740,1745409052223,-225.746988,0.00046625,14]
[358744741,1745409052232,-209.953623,0.00046625,14]
[358744742,1745409052242,-209.953623,0.00046625,14]
[358744743,1745409052251,-225.746988,0.00046625,14]
[358744744,1745409052260,-225.746988,0.00046625,14]